bitfinex-derivatives/quotes_SOLF0:USTF0_20250923
["timestamp","ask_amount","ask_price","bid_price","bid_amount"]
[1758637051816,11.3467,220.07,219.99,0.51334199]
[1758637052305,11.3467,220.07,219.98,4.0883]
[1758637052715,11.3467,220.07,219.95,2.86]
[1758637053117,7.26,220.07,219.95,2.86]
[1758637053314,7.26,220.07,219.98,4.0884]
[1758637053616,7.26,220.07,219.95,2.86]
[1758637053818,7.26,220.07,219.97,63.599]
[1758637054519,7.26,220.07,219.98,4.0882]
[1758637056323,11.3467,220.07,219.98,4.0882]
[1758637057021,7.26,220.07,219.95,66.4654]
[1758637057221,7.26,220.07,219.95,2.86]
[1758637057416,63.5755,220.06,219.94,4.089]
[1758637057612,63.5755,220.06,219.89,63.6232]
[1758637057613,7.26,220.03,219.88,2.86]
[1758637058019,7.26,220.03,219.92,4.0895]
[1758637058417,7.26,220.03,219.88,2.86]
[1758637058618,7.26,219.97,219.84,66.4972]
[1758637059121,7.26,219.97,219.85,63.6342]
[1758637059521,7.26,219.97,219.86,63.631]
[1758637059718,63.5532,220.14,219.9,63.6201]
[1758637059719,7.26,220.03,219.9,63.6201]
[1758637059918,83.58,220.03,219.89,63.6223]
[1758637060322,83.58,220.03,219.88,2.86]
[1758637061524,7.26,219.97,219.84,63.6372]
[1758637061723,7.26,219.97,219.83,2.86]
[1758637061929,7.26,219.97,219.83,66.5006]
[1758637062615,7.26,219.97,219.88,4.0902]
[1758637063032,7.26,219.97,219.85,63.6335]
[1758637063324,7.26,219.97,219.89,4.0899]
[1758637064825,11.3487,219.97,219.86,4.0904]
[1758637065329,7.26,219.97,219.91,4.0895]
[1758637065627,7.26,219.97,219.87,2.86]
[1758637066122,11.3486,219.97,219.88,4.0901]
[1758637066322,7.26,219.97,219.88,4.0901]
[1758637067530,11.3487,219.97,219.88,4.0901]
[1758637068332,63.5692,220.08,219.9,2.86]
[1758637068631,123.22,220.07,219.9,2.86]
[1758637068930,7.26,220.07,219.9,2.86]
[1758637069231,7.26,220.05,219.9,2.86]
[1758637069425,7.26,220.03,219.85,63.6353]
[1758637069627,7.26,220.03,219.86,2.86]
[1758637070723,7.26,220.0,219.9,4.0897]
[1758637071429,4.0883,219.99,219.9,4.0897]
[1758637072033,4.0886,219.97,219.88,4.0902]
[1758637072718,70.8544,220.0,219.86,6.9506]
[1758637073033,7.26,219.99,219.86,2.86]
[1758637073530,7.26,219.99,219.87,63.6288]
[1758637073728,7.26,219.99,219.88,2.86]
[1758637074432,9.65213186,220.07,219.94,6.9491]
[1758637074433,111.33,220.07,219.94,6.9491]
[1758637074838,11.6576,220.03,219.95,4.0888]
[1758637075429,11.6576,220.03,219.94,2.86]
[1758637075628,4.0878,220.02,219.94,2.86]
[1758637076232,4.088,220.01,219.94,2.86]
[1758637076429,7.57,220.03,219.87,2.86]
[1758637077027,7.57,219.98,219.87,2.86]
[1758637077231,7.57,219.98,219.8,63.6496]
[1758637077433,63.6066,219.95,219.82,2.86]
[1758637077741,7.57,219.9,219.82,2.86]
[1758637078033,4.0901,219.89,219.79,120.0319]
[1758637078639,4.0901,219.89,219.8,4.0916]
[1758637079427,7.57,219.9,219.8,4.0916]
[1758637079631,7.57,219.9,219.82,4.0913]
[1758637079829,31.67,219.94,219.8,2.86]
[1758637080033,11.6606,219.87,219.77,4.0922]
[1758637080534,7.57,219.87,219.78,4.0919]
[1758637080735,7.57,219.87,219.74,2.86]
[1758637080933,63.586,220.03,219.78,63.6547]
[1758637081133,7.57,219.89,219.76,66.5188]
[1758637081332,7.57,219.89,219.76,2.86]
[1758637081843,7.57,219.89,219.79,4.0919]
[1758637082344,7.57,219.89,219.76,2.86]
[1758637082641,63.6044,219.96,219.7,2.86]
[1758637082642,7.57,219.83,219.7,2.86]
[1758637082840,7.57,219.83,219.66,63.6903]
[1758637083138,11.6619,219.79,219.71,4.0934]
[1758637083342,11.6619,219.79,219.66,2.86]
[1758637083544,4.0924,219.77,219.66,2.86]
[1758637083942,4.0924,219.77,219.63,92.78]
[1758637083943,11.6627,219.75,219.63,4.0948]
[1758637084142,11.6627,219.75,219.62,346.54]
[1758637084443,11.6627,219.75,219.63,63.6987]
[1758637084444,7.57,219.75,219.63,63.6987]
[1758637084638,63.6298,219.87,219.67,63.6873]
[1758637084941,7.57,219.81,219.66,2.86]
[1758637085144,7.57,219.76,219.66,2.86]
[1758637085337,7.57,219.76,219.66,66.5498]
[1758637085735,41.43,219.82,219.7,2.86]
[1758637085940,7.57,219.82,219.7,2.86]
[1758637086543,7.57,219.82,219.73,4.093]
[1758637087144,7.57,219.82,219.75,4.0926]
[1758637087541,7.57,219.82,219.74,2.86]
[1758637087848,7.57,219.82,219.7,2.86]
[1758637088044,7.57,219.82,219.64,63.6949]
[1758637088244,63.6395,219.84,219.65,2.86]
[1758637088245,7.57,219.83,219.65,2.86]
[1758637088642,11.6612,219.83,219.68,63.6835]
[1758637088843,7.57,219.88,219.73,66.529]
[1758637089451,11.6602,219.88,219.78,4.0921]
[1758637089645,7.57,219.88,219.77,2.86]
[1758637090147,7.57,219.88,219.8,4.0916]
[1758637090350,7.57,219.88,219.71,2.86]
[1758637090547,7.57,219.85,219.71,2.86]
[1758637090748,4.0916,219.81,219.71,2.86]
[1758637090951,7.57,219.79,219.66,2.86]
[1758637091745,4.0925,219.76,219.66,2.86]
[1758637091950,7.66,219.75,219.66,2.86]
[1758637092344,71.3227,219.76,219.57,2.89]
[1758637092548,7.66,219.74,219.57,2.89]
[1758637093052,7.66,219.72,219.57,2.89]
[1758637093349,7.66,219.7,219.57,2.89]
[1758637094051,7.66,219.7,219.62,4.0951]
[1758637094651,7.66,219.7,219.61,2.89]
[1758637095148,7.66,219.78,219.66,4.0943]
[1758637095341,123.68,219.78,219.61,2.89]
[1758637095542,7.66,219.78,219.65,63.6931]
[1758637095747,7.66,219.78,219.7,4.0935]
[1758637096050,7.66,219.78,219.66,2.89]
[1758637096249,4.0923,219.77,219.66,2.89]
[1758637096853,7.66,219.78,219.66,2.89]
[1758637097545,4.0927,219.76,219.66,2.89]
[1758637098253,4.0928,219.75,219.66,2.89]
[1758637098459,7.66,219.76,219.63,4.0949]
[1758637098649,71.3279,219.74,219.61,2.89]
[1758637098854,4.0938,219.69,219.61,2.89]
[1758637099354,7.66,219.72,219.61,6.9851]
[1758637099554,7.66,219.72,219.61,2.89]
[1758637099853,7.66,219.72,219.61,6.9853]
[1758637100054,4.0937,219.7,219.61,6.9853]
[1758637100255,4.0937,219.7,219.61,2.89]
[1758637101657,7.26,219.72,219.61,2.89]
[1758637102152,7.26,219.72,219.62,4.0951]
[1758637102654,7.26,219.72,219.64,4.0947]
[1758637103552,7.26,219.72,219.61,2.89]
[1758637104250,11.3532,219.72,219.64,4.0946]
[1758637104450,11.3532,219.72,219.61,2.89]
[1758637105261,7.26,219.72,219.61,2.89]
[1758637106361,7.26,219.72,219.63,4.0949]
[1758637106654,7.26,219.72,219.61,2.89]
[1758637106855,7.26,219.72,219.62,63.7006]
[1758637107055,343.88,219.79,219.65,63.6927]
[1758637107257,7.5,219.78,219.66,3.29]
[1758637107450,7.5,219.78,219.71,4.0934]
[1758637107652,7.5,219.78,219.7,3.29]
[1758637108256,7.5,219.78,219.71,4.0933]
[1758637108646,7.5,219.78,219.7,3.29]
[1758637109252,4.0923,219.77,219.7,3.29]
[1758637109451,7.5,219.78,219.65,3.29]
[1758637109652,7.5,219.78,219.68,3.29]
[1758637109852,7.5,219.78,219.71,4.0932]
[1758637110254,7.5,219.78,219.68,3.29]
[1758637110759,11.5923,219.78,219.69,4.0937]
[1758637110960,7.5,219.78,219.69,4.0937]
[1758637111660,7.5,219.78,219.7,4.0934]
[1758637111962,7.5,219.78,219.68,3.29]
[1758637112165,4.0916,219.81,219.68,66.9718]
[1758637112351,7.5,219.82,219.68,66.9718]
[1758637112556,71.1448,219.82,219.68,3.29]
[1758637112754,104.979,219.84,219.62,3.29]
[1758637112755,7.5,219.78,219.62,3.29]
[1758637112958,71.1615,219.76,219.62,3.29]
[1758637113160,71.1615,219.76,219.59,87.0]
[1758637113161,7.5,219.74,219.59,87.0]
[1758637113359,7.5,219.69,219.59,87.0]
[1758637113662,7.5,219.69,219.58,3.29]
[1758637114363,4.0947,219.65,219.58,3.29]
[1758637114664,7.5,219.69,219.58,3.29]
[1758637115565,7.5,219.69,219.59,4.0955]
[1758637115760,7.5,219.69,219.58,3.29]
[1758637116761,7.5,219.69,219.6,4.0953]
[1758637117264,7.5,219.69,219.58,3.29]
[1758637117665,7.5,219.69,219.6,63.707]
[1758637117860,6.18663846,219.77,219.59,63.7107]
[1758637117861,7.5,219.76,219.62,3.29]
[1758637118060,123.54,219.76,219.62,3.29]
[1758637118861,4.0928,219.75,219.65,4.0944]
[1758637119060,71.1691,219.74,219.57,3.29]
[1758637119461,7.5,219.72,219.57,3.29]
[1758637119665,7.5,219.72,219.59,4.0956]
[1758637119861,7.5,219.72,219.57,3.29]
[1758637120368,11.5933,219.72,219.6,4.0953]
[1758637120664,7.5,219.72,219.6,4.0953]
[1758637121864,7.5,219.69,219.6,4.0953]
[1758637122258,7.5,219.69,219.55,63.7216]
[1758637122259,69.85803846,219.73,219.53,67.0161]
[1758637122561,7.5,219.67,219.53,3.29]
[1758637122762,7.5,219.65,219.48,343.88]
[1758637123061,7.5,219.64,219.47,3.29]
[1758637123466,7.5,219.65,219.48,63.7416]
[1758637123668,11.25784183,219.69,219.5,63.7356]
[1758637123864,7.5,219.67,219.51,3.29]
[1758637124068,7.5,219.64,219.51,3.29]
[1758637124573,7.5,219.62,219.51,3.29]
[1758637125075,11.25784183,219.69,219.58,4.0958]
[1758637125076,7.5,219.69,219.58,4.0958]
[1758637125370,7.5,219.67,219.54,63.7244]
[1758637125961,7.5,219.67,219.53,3.29]
[1758637126763,4.0946,219.65,219.53,7.3868]
[1758637126966,7.5,219.64,219.53,3.29]
[1758637128181,11.5948,219.64,219.53,3.29]
[1758637128773,11.5948,219.64,219.53,7.3866]
[1758637128972,7.5,219.62,219.53,4.0966]
[1758637129172,7.5,219.62,219.55,4.0964]
[1758637129365,7.5,219.62,219.51,63.7335]
[1758637129676,7.5,219.62,219.56,4.0961]
[1758637129971,7.5,219.62,219.54,3.29]
[1758637130574,7.5,219.62,219.54,7.3864]
[1758637130979,7.5,219.62,219.54,4.0964]
[1758637131571,7.5,219.62,219.5,3.29]
[1758637132763,7.5,219.62,219.53,4.0966]
[1758637132967,7.5,219.62,219.5,3.29]
[1758637133475,4.0953,219.61,219.51,4.097]
[1758637133679,4.0953,219.61,219.45,77.29046499]
[1758637133680,63.6998,219.63,219.46,3.29]
[1758637133872,70.7824,219.62,219.46,3.29]
[1758637134179,7.08,219.56,219.44,6.18663846]
[1758637134871,7.08,219.56,219.44,63.754]
[1758637135179,7.08,219.56,219.48,4.0976]
[1758637135374,7.08,219.56,219.45,67.0401]
[1758637135879,7.08,219.56,219.46,63.7459]
[1758637136175,7.08,219.56,219.48,67.0319]
[1758637136574,7.08,219.61,219.48,67.0319]
[1758637136774,7.08,219.61,219.49,63.7377]
[1758637137172,7.08,219.61,219.54,4.0964]
[1758637137580,4.0956,219.6,219.51,4.097]
[1758637138177,7.08,219.61,219.49,63.7393]
[1758637138483,7.08,219.61,219.51,3.29]
[1758637138874,7.08,219.61,219.52,63.7307]
[1758637139375,7.7860393,219.63,219.56,4.0962]
[1758637139574,7.7860393,219.63,219.51,3.29]
[1758637140679,0.7060393,219.63,219.47,67.035]
[1758637141074,7.08,219.59,219.49,4.0975]
[1758637141276,96.64,219.59,219.47,3.29]
[1758637142281,96.64,219.59,219.41,63.7622]
[1758637142282,63.7207,219.56,219.41,3.29]
[1758637142479,7.08,219.55,219.41,3.29]
[1758637143086,11.1773,219.51,219.43,4.0985]
[1758637143378,11.1773,219.51,219.34,407.8832]
[1758637143379,123.14,219.51,219.34,407.8832]
[1758637143581,7.08,219.5,219.35,3.29]
[1758637143784,7.08,219.5,219.38,3.29]
[1758637143988,7.08,219.5,219.39,63.7684]
[1758637144489,7.08,219.5,219.43,4.0985]
[1758637145280,7.08,219.5,219.44,4.0983]
[1758637145479,7.08,219.5,219.41,63.7618]
[1758637145683,71.8762,219.67,219.5,4.0972]
[1758637145684,4.0958,219.59,219.5,4.0972]
[1758637145984,7.08,219.61,219.46,3.29]
[1758637145985,7.08,219.58,219.48,63.7422]
[1758637146182,7.08,219.58,219.49,67.0298]
[1758637146578,7.08,219.58,219.5,63.7367]
[1758637146774,7.08,219.58,219.51,63.7319]
[1758637146976,344.2,219.65,219.58,4.0958]
[1758637146977,7.08,219.64,219.58,4.0958]
[1758637147593,7.08,219.64,219.52,67.0193]
[1758637147887,7.08,219.64,219.54,63.7253]
[1758637148094,344.2,219.65,219.56,63.7171]
[1758637148282,7.08,219.68,219.56,67.0071]
[1758637148586,7.08,219.68,219.59,3.29]
[1758637148791,7.08,219.73,219.63,3.29]
[1758637149290,7.08,219.73,219.63,7.3848]
[1758637149690,7.08,219.73,219.63,3.29]
[1758637149889,7.08,219.73,219.65,4.0945]
[1758637150089,7.08,219.73,219.63,3.29]
[1758637150290,7.08,219.73,219.66,4.0942]
[1758637150987,69.9870796,219.75,219.66,3.29]
[1758637151380,69.9870796,219.75,219.69,4.0936]
[1758637151581,116.06,219.81,219.7,66.9379]
[1758637152093,7.62,219.8,219.7,7.3535]
[1758637152291,7.62,219.8,219.7,3.26]
[1758637152493,7.62,219.8,219.72,4.0931]
[1758637152793,7.62,219.8,219.7,3.26]
[1758637153088,7.62,219.8,219.71,4.0934]
[1758637153792,116.06,219.81,219.7,3.26]
[1758637153993,116.06,219.81,219.72,63.6729]
[1758637154183,116.06,219.81,219.7,3.26]
[1758637154387,116.06,219.81,219.72,4.0931]
[1758637155088,4.0912,219.83,219.72,4.0931]
[1758637155395,4.0912,219.83,219.65,3.26]
[1758637155396,7.62,219.8,219.65,3.26]
[1758637155892,11.7123,219.77,219.65,3.26]
[1758637157090,11.7123,219.77,219.66,4.0943]
[1758637157483,7.62,219.77,219.65,3.26]
[1758637157699,7.62,219.77,219.69,4.0937]
[1758637157994,7.62,219.77,219.65,3.26]
[1758637158489,7.62,219.77,219.67,4.094]
[1758637158688,7.62,219.77,219.6,63.7073]
[1758637158995,7.62,219.78,219.67,4.0941]
[1758637159990,7.62,219.78,219.69,4.0937]
[1758637160190,7.62,219.78,219.68,3.26]
[1758637160397,7.62,219.85,219.73,4.093]
[1758637160588,7.62,219.83,219.72,3.26]
[1758637160789,11.7112,219.83,219.72,3.26]
[1758637162001,7.62,219.8,219.67,3.26]
[1758637162497,7.62,219.8,219.68,4.094]
[1758637163896,4.092,219.79,219.68,4.094]
[1758637164091,63.6422,219.83,219.65,4.0944]
[1758637164092,7.31,219.78,219.65,4.0944]
[1758637164293,7.31,219.78,219.61,3.29]
[1758637164686,4.0931,219.73,219.62,4.0949]
[1758637164891,7.31,219.72,219.61,3.29]
[1758637166195,7.31,219.72,219.58,4.0958]
[1758637166394,7.31,219.7,219.56,3.29]
[1758637166698,4.0942,219.67,219.57,4.096]
[1758637167395,4.0942,219.67,219.56,3.29]
[1758637167595,7.31,219.66,219.56,3.29]
[1758637168195,7.31,219.66,219.58,4.0958]
[1758637168589,7.31,219.66,219.56,3.29]
[1758637168590,7.31,219.74,219.57,63.7165]
[1758637168794,7.31,219.74,219.6,3.29]
[1758637168795,97.18,219.73,219.6,3.29]
[1758637169197,7.31,219.72,219.6,3.29]
[1758637169400,4.0934,219.71,219.6,3.29]
[1758637169796,11.4042,219.67,219.58,4.0957]
[1758637170187,7.31,219.67,219.54,3.29]
[1758637170393,7.31,219.62,219.54,4.0964]
[1758637170893,7.31,219.6,219.49,3.29]
[1758637171090,71.0153,219.61,219.43,3.29]
[1758637171396,4.096,219.58,219.47,4.0979]
[1758637172190,7.31,219.61,219.49,3.29]
[1758637172793,7.31,219.61,219.51,4.0971]
[1758637173193,7.31,219.61,219.53,4.0967]
[1758637173391,7.31,219.61,219.49,67.0284]
[1758637173392,7.31,219.61,219.51,63.7337]
[1758637173596,7.31,219.61,219.49,67.0284]
[1758637173791,7.31,219.61,219.52,4.0968]
[1758637174096,7.31,219.61,219.49,67.0287]
[1758637174297,7.31,219.61,219.5,4.0972]
[1758637174597,7.31,219.61,219.49,3.29]
[1758637174895,7.31,219.61,219.5,63.7368]
[1758637175297,7.31,219.61,219.54,4.0966]
[1758637176101,7.31,219.61,219.53,4.0968]
[1758637176595,7.31,219.61,219.49,3.29]
[1758637176802,7.31,219.61,219.5,4.0972]
[1758637177694,7.31,219.61,219.52,4.0969]
[1758637178091,7.31,219.61,219.5,63.7349]
[1758637178398,7.31,219.7,219.54,63.7239]
[1758637178696,7.31,219.68,219.57,4.0958]
[1758637179091,7.31,219.64,219.53,3.29]
[1758637179594,7.31,219.64,219.48,3.29]
[1758637179788,7.31,219.64,219.49,4.0974]
[1758637180095,4.0955,219.6,219.49,4.0974]
[1758637180295,7.31,219.59,219.49,4.0974]
[1758637181099,7.31,219.59,219.48,3.29]
[1758637181605,7.31,219.59,219.51,4.0971]
[1758637182609,7.31,219.59,219.49,63.7394]
[1758637182901,7.31,219.64,219.5,3.29]
[1758637183209,11.4049,219.64,219.54,4.0964]
[1758637183705,7.31,219.64,219.56,4.0962]
[1758637183898,7.31,219.64,219.54,3.29]
[1758637183899,7.31,219.64,219.55,63.721]
[1758637184099,7.31,219.64,219.54,3.29]
[1758637185008,7.31,219.64,219.59,4.0955]
[1758637185209,7.31,219.64,219.54,3.29]
[1758637185613,92.1,219.69,219.6,4.0954]
[1758637185802,99.41,219.69,219.6,4.0954]
[1758637186111,99.41,219.69,219.55,63.7221]
[1758637186713,7.31,219.69,219.57,3.29]
[1758637187102,4.0943,219.67,219.58,4.0958]
[1758637187299,7.31,219.66,219.57,3.29]
[1758637188101,7.31,219.66,219.53,67.0169]
[1758637188511,11.4045,219.66,219.57,4.096]
[1758637190901,11.4045,219.66,219.53,3.29]
[1758637190902,11.4045,219.66,219.58,4.0957]
[1758637191106,7.31,219.66,219.56,3.29]
[1758637192320,7.31,219.66,219.6,4.0953]
[1758637192612,115.96,219.72,219.57,67.0057]
[1758637192912,4.0939,219.69,219.57,67.0057]
[1758637193109,4.0939,219.69,219.57,3.29]
[1758637193416,7.09,219.68,219.57,3.29]
[1758637193713,7.09,219.68,219.57,7.386]
[1758637193914,7.09,219.66,219.52,3.29]
[1758637194909,11.1849,219.63,219.52,3.29]
[1758637195209,7.09,219.63,219.52,3.29]
[1758637195916,11.1849,219.63,219.52,3.29]
[1758637197523,4.0953,219.61,219.52,3.29]
[1758637198819,4.0953,219.61,219.54,4.0964]
[1758637199023,7.09,219.63,219.52,3.29]
[1758637199316,7.09,219.69,219.54,63.7249]
[1758637199619,123.03,219.69,219.55,3.29]
[1758637200525,123.03,219.69,219.6,4.0953]
[1758637200915,7.09,219.69,219.58,3.29]
[1758637201619,11.1839,219.69,219.61,4.0951]
[1758637202012,11.1839,219.69,219.58,3.29]
[1758637202013,7.09,219.69,219.58,67.0022]
[1758637202618,0.72554866,219.74,219.61,63.7046]
[1758637202619,7.09,219.73,219.61,63.7046]
[1758637203622,7.09,219.73,219.64,4.0947]
[1758637203818,7.09,219.73,219.6,3.29]
[1758637204123,4.0934,219.72,219.64,4.0946]
[1758637204526,7.09,219.73,219.63,3.29]
[1758637204716,344.08,219.77,219.66,3.29]
[1758637205420,7.09,219.92,219.82,63.6437]
[1758637205622,7.09,219.98,219.89,63.6238]
[1758637205822,7.09,220.03,219.9,3.29]
[1758637206417,112.98,220.05,219.93,63.6118]
[1758637206621,112.98,220.05,219.94,3.29]
[1758637207723,7.09,220.04,219.89,115.7]
[1758637207929,4.0877,220.02,219.89,115.7]
[1758637208126,7.09,220.04,219.89,115.7]
[1758637208525,4.0875,220.03,219.88,12.9820326]
[1758637208725,63.5836,220.03,219.88,12.9820326]
[1758637208928,7.09,220.02,219.88,12.9820326]
[1758637209130,7.09,220.02,219.89,4.09]
[1758637209426,7.09,220.02,219.9,3.29]
[1758637209632,63.5929,220.0,219.9,3.29]
[1758637210227,11.1785,219.98,219.84,3.29]
[1758637211027,4.089,219.95,219.84,3.29]
[1758637211221,70.6998,219.94,219.84,3.29]
[1758637211619,4.0894,219.93,219.84,3.29]
[1758637212223,4.0898,219.91,219.79,3.29]
[1758637213523,63.6256,219.89,219.79,3.29]
[1758637213725,63.6276,219.88,219.79,3.29]
[1758637213930,71.0218,219.9,219.75,3.27]
[1758637214228,4.0903,219.88,219.75,3.27]
[1758637215131,4.0907,219.86,219.75,3.27]
[1758637215828,4.0911,219.84,219.75,3.27]
[1758637216335,7.4,219.84,219.71,460.62]
[1758637216632,7.4,219.84,219.71,347.25]
[1758637217331,4.0915,219.82,219.71,347.25]
[1758637217627,7.4,219.84,219.71,347.25]
[1758637217628,7.4,219.84,219.72,4.0932]
[1758637217823,7.4,219.84,219.73,3.27]
[1758637218430,7.4,219.9,219.74,63.6661]
[1758637218733,7.4,219.9,219.78,4.092]
[1758637218734,4.0901,219.89,219.78,4.092]
[1758637219432,7.4,219.9,219.8,4.0916]
[1758637219934,7.4,219.9,219.81,3.27]
[1758637220632,7.4,219.9,219.77,3.27]
[1758637220826,4.0903,219.88,219.77,3.27]
[1758637221930,4.0903,219.88,219.78,4.0921]
[1758637222129,4.0903,219.88,219.77,3.27]
[1758637222637,7.4,219.9,219.77,7.3622]
[1758637223035,4.0901,219.89,219.79,4.0919]
[1758637223240,7.4,219.9,219.78,63.655]
[1758637223438,7.4,219.9,219.79,3.28]
[1758637223639,4.0891,219.95,219.83,4.0911]
[1758637223937,4.0891,219.95,219.83,3.28]
[1758637224240,7.19,219.96,219.87,4.0904]
[1758637225341,11.2789,219.96,219.83,7.371]
[1758637225541,7.19,219.96,219.83,3.28]
[1758637225943,4.0893,219.93,219.83,3.28]
[1758637226437,7.19,219.92,219.83,3.28]
[1758637227239,7.19,220.0,219.84,3.28]
[1758637227634,4.0882,219.99,219.86,7.3705]
[1758637227839,7.19,220.0,219.86,3.28]
[1758637228344,7.19,219.94,219.81,3.28]
[1758637229050,63.6075,219.95,219.72,3.28]
[1758637229051,7.19,219.88,219.72,3.28]
[1758637229243,70.8177,219.88,219.72,3.28]
[1758637229443,7.19,219.88,219.72,3.28]
[1758637229843,7.19,219.88,219.74,3.28]
[1758637230246,7.19,219.88,219.75,4.0927]
[1758637230550,7.19,219.88,219.74,3.28]
[1758637231047,7.19,219.88,219.79,4.0919]
[1758637231247,4.0905,219.87,219.78,3.28]
[1758637231952,7.19,219.88,219.78,3.28]
[1758637231953,7.19,219.88,219.78,7.3721]
[1758637232350,7.19,219.88,219.8,4.0917]
[1758637232751,4.0898,219.91,219.8,4.0917]
[1758637232947,7.19,219.93,219.8,4.0917]
[1758637233551,7.19,219.93,219.78,3.28]
[1758637233552,11.2795,219.93,219.79,63.6513]
[1758637233748,7.19,219.93,219.8,3.28]
[1758637233950,4.0895,219.92,219.8,3.28]
[1758637234258,7.19,219.93,219.8,3.28]
[1758637234445,63.6056,219.96,219.75,9.45745858]
[1758637234446,4.0905,219.87,219.75,9.45745858]
[1758637234651,4.0905,219.87,219.76,120.4925]
[1758637234846,4.0905,219.87,219.76,116.4]
[1758637235043,7.19,219.9,219.76,116.4]
[1758637235244,7.19,219.9,219.81,7.3714]
[1758637236557,7.19,219.9,219.78,4.092]
[1758637237354,7.19,219.9,219.76,3.28]
[1758637237355,7.19,219.9,219.79,4.0917]
[1758637237555,7.19,219.9,219.77,63.658]
[1758637237858,4.0901,219.89,219.76,3.28]
[1758637238053,70.7877,219.99,219.81,3.28]
[1758637238360,70.7877,219.99,219.87,4.0904]
[1758637238361,4.0886,219.97,219.87,4.0904]
[1758637238556,4.0886,219.97,219.85,3.28]
[1758637238759,4.0886,219.97,219.89,4.09]
[1758637239256,7.19,219.99,219.89,4.09]
[1758637239554,7.19,219.99,219.85,3.28]
[1758637239749,63.6019,219.97,219.79,63.6516]
[1758637239949,7.19,219.97,219.81,3.28]
[1758637240158,7.19,219.97,219.86,4.0904]
[1758637240349,7.19,219.97,219.85,3.28]
[1758637240751,7.19,219.97,219.88,4.0901]
[1758637240948,11.2787,219.97,219.85,3.28]
[1758637241151,7.19,219.97,219.85,3.28]
[1758637241757,4.0894,219.93,219.85,3.28]
[1758637241957,7.19,219.93,219.8,59.5]
[1758637242660,7.19,220.0,219.83,63.641]
[1758637242860,7.19,220.0,219.86,63.6321]
[1758637242861,4.0884,219.99,219.86,63.6321]
[1758637243156,4.0884,219.99,219.87,3.28]
[1758637243462,11.2782,220.0,219.9,4.0897]
[1758637244259,4.0884,219.99,219.88,4.0902]
[1758637244461,70.7835,220.0,219.88,4.0902]